bitfinex-derivatives/quotes_SOLF0:USTF0_20241218
["timestamp","ask_amount","ask_price","bid_price","bid_amount"]
[1734492666710,2.1978,218.13,218.1,7.87887123]
[1734492666910,7.83163935,218.13,218.09,61.75337465]
[1734492667113,7.83163935,218.13,218.09,59.49337465]
[1734492667308,2.2924,218.11,218.09,59.49337465]
[1734492668105,2.2923,218.12,218.09,59.49337465]
[1734492668302,2.1978,218.13,218.09,59.49337465]
[1734492668611,3.66,218.12,218.09,59.49337465]
[1734492669009,3.66,218.12,218.08,10.18653935]
[1734492669307,5.9523,218.12,218.08,7.89383935]
[1734492669509,3.66,218.12,218.08,7.89383935]
[1734492669810,3.66,218.12,218.07,13.40007787]
[1734492670007,3.66,218.12,218.09,5.63383935]
[1734492670210,3.66,218.12,218.11,5.63383935]
[1734492670512,3.66,218.12,218.11,7.92623935]
[1734492670711,3.66,218.12,218.09,5.63383935]
[1734492671212,3.66,218.12,218.07,15.69277787]
[1734492671605,2.2924,218.11,218.07,11.14007787]
[1734492671807,2.2924,218.11,218.08,2.26]
[1734492672407,5.4924,218.11,218.08,2.26]
[1734492673213,8.83383935,218.11,218.04,0.39397]
[1734492673415,8.83383935,218.11,218.05,2.26]
[1734492673616,8.83383935,218.11,218.04,0.39397]
[1734492673916,2.293,218.07,218.04,0.39397]
[1734492674313,2.293,218.06,218.04,0.39397]
[1734492675409,2.2931,218.05,218.04,0.39397]
[1734492676515,10.49426074,218.1,218.04,0.39397]
[1734492676716,8.14,218.11,218.04,2.65397]
[1734492676914,2.2926,218.09,218.04,4.94707]
[1734492677221,10.48462882,218.1,218.05,5.63383935]
[1734492677409,8.14,218.11,218.08,5.63383935]
[1734492677809,8.14,218.11,218.06,5.63383935]
[1734492678410,8.14,218.11,218.06,7.92673935]
[1734492679620,13.77383935,218.11,218.04,8.28780935]
[1734492679917,13.77383935,218.11,218.04,2.65397]
[1734492680508,5.63383935,218.09,218.04,0.39397]
[1734492681114,2.2,218.08,218.04,0.39397]
[1734492681317,2.293,218.06,218.04,0.39397]
[1734492682612,3.66,218.05,218.04,0.39397]
[1734492683421,5.953,218.05,218.04,0.39397]
[1734492684923,9.29383935,218.05,217.98,2.26]
[1734492685120,2.2934,218.02,217.98,2.26]
[1734492685318,9.29383935,218.05,217.98,7.89383935]
[1734492685518,3.66,218.05,218.0,5.63383935]
[1734492686619,3.66,218.05,218.04,5.63383935]
[1734492687515,3.66,218.05,218.04,7.92693935]
[1734492690918,1.21505703,218.05,218.04,7.92693935]
[1734492691123,2.2,218.08,218.04,5.63383935]
[1734492691429,2.2,218.08,218.07,7.92663935]
[1734492692728,8.11,218.08,218.07,7.92663935]
[1734492693321,5.7074,218.08,218.07,7.92663935]
[1734492693527,3.66,218.09,218.08,2.2927]
[1734492693729,7.32,218.09,218.08,4.5527]
[1734492693924,7.1651,218.09,218.08,4.5527]
[1734492694125,8.14,218.11,218.1,2.2925]
[1734492694324,31.99889503,218.33,218.1,5.63383935]
[1734492694325,5.63383935,218.22,218.1,5.63383935]
[1734492694521,5.63383935,218.22,218.15,5.63383935]
[1734492694727,13.90503935,218.22,218.16,2.2918]
[1734492695321,7.32,218.21,218.17,2.2918]
[1734492695529,13.83,218.21,218.17,2.2918]
[1734492695729,13.83,218.21,218.17,5.63383935]
[1734492695932,13.83,218.21,218.2,2.2915]
[1734492696123,13.83,218.21,218.2,4.5515]
[1734492700429,0.98,218.28,218.2,2.26]
[1734492700729,0.98,218.28,218.27,5.63383935]
[1734492701034,3.0944,218.33,218.28,2.2905]
[1734492701234,3.0944,218.33,218.29,5.63383935]
[1734492701537,6.19,218.32,218.27,2.26]
[1734492701828,5.63383935,218.31,218.27,2.26]
[1734492702029,6.19,218.32,218.27,2.26]
[1734492703537,2.2904,218.3,218.27,2.26]
[1734492703829,6.19,218.32,218.23,2.2911]
[1734492704136,6.19,218.32,218.24,2.26]
[1734492705440,2.2905,218.29,218.24,2.26]
[1734492706345,2.2905,218.29,218.22,66.09006533]
[1734492706536,2.2905,218.29,218.23,2.26]
[1734492707338,6.19,218.32,218.23,4.551]
[1734492707538,6.19,218.32,218.23,2.26]
[1734492708040,8.4802,218.32,218.23,2.26]
[1734492709043,6.19,218.32,218.23,2.26]
[1734492709246,6.19,218.32,218.25,8.7986184]
[1734492710342,6.19,218.32,218.27,2.2906]
[1734492710540,6.19,218.32,218.28,2.26]
[1734492711044,6.19,218.32,218.28,11.0586184]
[1734492711247,6.19,218.32,218.31,8.7986184]
[1734492711441,6.19,218.32,218.31,11.0888184]
[1734492711948,11.86,218.33,218.32,2.2901]
[1734492712440,11.86,218.33,218.31,8.7986184]
[1734492712441,2.26,218.46,218.31,8.7986184]
[1734492712648,4.5177,218.48,218.39,2.2894]
[1734492712649,2.2888,218.45,218.39,2.2894]
[1734492712841,4.5177,218.48,218.38,2.26]
[1734492713038,0.98,218.46,218.4,2.2892]
[1734492713742,15.7187,218.46,218.4,2.2892]
[1734492717349,15.7187,218.46,218.39,2.2894]
[1734492717943,2.289,218.44,218.38,2.26]
[1734492718140,13.43,218.46,218.37,2.26]
[1734492718947,2.2891,218.43,218.37,2.26]
[1734492719643,13.43,218.46,218.37,2.26]
[1734492719944,2.2889,218.45,218.37,2.26]
[1734492720148,13.43,218.46,218.37,2.26]
[1734492720442,13.43,218.46,218.4,2.2892]
[1734492721359,2.2888,218.45,218.39,2.2894]
[1734492721547,13.43,218.46,218.37,2.26]
[1734492721949,15.69,218.46,218.37,2.26]
[1734492723449,2.2891,218.43,218.37,4.5496]
[1734492723656,15.69,218.46,218.37,4.5496]
[1734492724255,2.2891,218.43,218.37,4.5496]
[1734492724747,15.69,218.46,218.39,2.2894]
[1734492724748,2.2889,218.44,218.39,2.2894]
[1734492725151,13.43,218.46,218.37,2.26]
[1734492725658,2.2888,218.45,218.4,2.2893]
[1734492726157,2.289,218.44,218.38,2.2894]
[1734492726346,3.66,218.43,218.38,2.2894]
[1734492726755,2.2891,218.42,218.37,2.26]
[1734492727057,3.66,218.43,218.36,2.2896]
[1734492727458,0.98,218.42,218.36,2.2896]
[1734492727854,7.04,218.42,218.36,2.2896]
[1734492728060,7.04,218.42,218.37,2.2896]
[1734492728561,7.04,218.42,218.35,8.7986184]
[1734492728757,7.04,218.42,218.33,2.26]
[1734492729158,7.04,218.42,218.34,2.26]
[1734492729554,7.04,218.42,218.31,5.45559473]
[1734492729759,7.04,218.42,218.31,2.26]
[1734492729961,2.2898,218.35,218.31,2.26]
[1734492731357,7.04,218.42,218.27,8.7986184]
[1734492731556,8.7986184,218.39,218.27,2.26]
[1734492731763,6.7779,218.38,218.27,2.26]
[1734492733064,2.2902,218.32,218.27,2.26]
[1734492733670,6.7779,218.38,218.27,2.26]
[1734492733964,2.2902,218.31,218.27,2.26]
[1734492739276,8.7986184,218.36,218.24,2.26]
[1734492739569,1.5174,218.3,218.18,8.7986184]
[1734492739770,3.1589,218.29,218.18,8.7986184]
[1734492739976,3.1589,218.29,218.19,2.26]
[1734492739977,2.2912,218.23,218.19,2.26]
[1734492740175,2.2912,218.23,218.17,2.26]
[1734492740369,3.1589,218.29,218.18,8.7986184]
[1734492742082,2.291,218.25,218.19,2.2915]
[1734492742469,3.1589,218.29,218.15,8.7986184]
[1734492742777,8.7986184,218.27,218.12,8.7986184]
[1734492742980,2.26,218.26,218.15,2.26]
[1734492743178,2.2915,218.2,218.15,2.26]
[1734492744479,2.2915,218.2,218.15,4.5519]
[1734492744979,2.2915,218.2,218.15,2.2919]
[1734492747871,8.7986184,218.27,218.14,7.87616689]
[1734492748072,2.2908,218.26,218.2,2.2914]
[1734492748277,3.1589,218.29,218.2,2.2914]
[1734492748474,3.66,218.28,218.2,2.2914]
[1734492748879,3.66,218.28,218.19,2.26]
[1734492749082,2.2909,218.25,218.21,2.2913]
[1734492749278,3.66,218.28,218.19,2.26]
[1734492749676,2.2916,218.19,218.14,7.90816689]
[1734492749875,3.66,218.28,218.15,2.26]
[1734492750079,5.63458151,218.24,218.16,5.63458151]
[1734492750878,5.63458151,218.22,218.14,5.63458151]
[1734492751076,5.63458151,218.22,218.11,5.57431065]
[1734492751077,2.2918,218.17,218.12,10.18688151]
[1734492751284,2.2918,218.17,218.12,2.2923]
[1734492751582,2.2922,218.13,218.01,1.518]
[1734492751786,2.2922,218.13,218.09,5.63458151]
[1734492752081,2.2922,218.13,218.09,2.2926]
[1734492752782,2.26,218.19,218.07,5.60622675]
[1734492752987,4.5512,218.21,218.09,8.80969559]
[1734492753182,4.5512,218.21,218.12,8.80969559]
[1734492753377,4.5512,218.21,218.13,2.26]
[1734492753577,2.2915,218.19,218.13,2.26]
[1734492754185,7.8315,218.19,218.13,4.5521]
[1734492755387,7.8315,218.19,218.13,2.26]
[1734492755588,5.54,218.19,218.15,8.80969559]
[1734492755783,6.52,218.19,218.18,8.80969559]
[1734492755982,6.52,218.19,218.18,11.06969559]
[1734492756387,6.52,218.19,218.18,13.36129559]
[1734492757590,4.1182,218.19,218.18,13.36129559]
[1734492757990,11.2882,218.19,218.18,13.36129559]
[1734492758782,3.66,218.28,218.18,11.06969559]
[1734492759691,2.2908,218.27,218.2,2.2914]
[1734492759894,2.2908,218.27,218.18,11.06969559]
[1734492760089,15.5708,218.27,218.18,11.06969559]
[1734492760793,13.28,218.27,218.18,14.39107332]
[1734492760993,13.28,218.27,218.19,2.26]
[1734492761489,13.28,218.27,218.18,14.39107332]
[1734492761689,13.28,218.27,218.18,7.84137773]
[1734492762284,13.28,218.27,218.07,5.60622675]
[1734492762489,13.28,218.27,218.12,8.80969559]
[1734492762490,2.26,218.26,218.12,8.80969559]
[1734492762690,2.26,218.26,218.15,8.80969559]
[1734492762891,2.2913,218.23,218.15,8.80969559]
[1734492763393,2.2913,218.23,218.16,2.2918]
[1734492763394,2.2912,218.23,218.16,2.2918]
[1734492763590,2.26,218.26,218.16,2.2918]
[1734492763990,2.2913,218.23,218.16,2.2918]
[1734492764190,2.2913,218.23,218.15,8.80969559]
[1734492764390,2.2913,218.22,218.17,2.2918]
[1734492764589,2.2913,218.22,218.18,2.26]
[1734492765194,2.26,218.26,218.18,2.26]
[1734492765392,2.2914,218.21,218.18,2.26]
[1734492765596,2.26,218.26,218.18,2.26]
[1734492766391,2.2915,218.2,218.18,2.26]
[1734492767492,11.06969559,218.26,218.14,2.26]
[1734492768296,11.06969559,218.26,218.13,2.26]
[1734492768795,2.2917,218.19,218.14,2.292]
[1734492769493,2.2914,218.21,218.15,2.2919]
[1734492769689,2.2914,218.21,218.13,2.26]
[1734492770398,2.2914,218.21,218.15,2.292]
[1734492770797,3.66,218.2,218.15,2.292]
[1734492771699,3.66,218.2,218.18,2.2917]
[1734492771998,3.66,218.2,218.18,2.26]
[1734492773203,3.66,218.2,218.19,2.2916]
[1734492774000,3.66,218.2,218.18,2.26]
[1734492778407,3.66,218.2,218.19,2.2916]
[1734492780001,3.66,218.2,218.19,7.92326262]
[1734492782305,9.94,218.2,218.19,7.92326262]
[1734492784204,9.94,218.2,218.19,13.2985766]
[1734492784405,15.27,218.2,218.19,13.2985766]
[1734492786607,15.27,218.2,218.19,5.63166262]
[1734492786808,15.27,218.2,218.18,7.89166262]
[1734492787010,11.61,218.2,218.18,5.63166262]
[1734492787302,11.61,218.2,218.18,7.87166262]
[1734492788207,3.66,218.19,218.18,7.87166262]
[1734492788911,3.66,218.19,218.18,5.63166262]
[1734492789915,3.66,218.19,218.18,7.87166262]
[1734492791311,3.66,218.19,218.18,5.63166262]
[1734492791507,3.66,218.19,218.16,2.24]
[1734492791704,9.29166262,218.19,218.0,88.75747471]
[1734492791908,2.2919,218.16,218.11,5.63166262]
[1734492792112,13.58028228,218.18,218.11,5.63166262]
[1734492792509,2.2922,218.14,218.11,5.63166262]
[1734492793111,3.0524,218.18,218.13,7.92386262]
[1734492793306,3.0524,218.18,218.16,5.63166262]
[1734492793505,5.9516,218.19,218.16,5.63166262]
[1734492794004,3.66,218.19,218.18,5.63166262]
[1734492796007,3.66,218.19,218.18,8.80041486]
[1734492796214,11.61,218.2,218.18,8.80041486]
[1734492797509,15.27,218.2,218.19,2.2916]
[1734492797711,15.27,218.2,218.19,11.09201486]
[1734492798909,15.27,218.2,218.19,8.80041486]
[1734492800615,15.27,218.2,218.19,11.09201486]
[1734492802215,1.5194,218.28,218.19,8.80041486]
[1734492803214,8.4494,218.28,218.19,8.80041486]
[1734492803414,3.6,218.27,218.22,2.2912]
[1734492803618,3.6,218.27,218.23,2.24]
[1734492804214,3.6,218.27,218.23,4.5311]
[1734492805329,3.6,218.27,218.23,2.24]
[1734492806026,3.6,218.27,218.26,2.2908]
[1734492807227,1.4631,218.36,218.25,8.80041486]
[1734492807424,24.47799096,218.36,218.29,8.80041486]
[1734492807629,24.47799096,218.36,218.24,1.5117]
[1734492807630,10.54516757,218.35,218.32,8.80041486]
[1734492807831,3.0673,218.39,218.33,2.24]
[1734492808432,9.0373,218.39,218.33,2.24]
[1734492808630,19.583258,218.39,218.33,2.24]
[1734492808828,9.0373,218.39,218.33,2.24]
[1734492809031,19.57259059,218.39,218.33,4.53]
[1734492809225,9.0373,218.39,218.33,4.53]
[1734492816026,9.0373,218.39,218.33,4.5301]
[1734492817928,9.0373,218.39,218.36,5.62449795]
[1734492818736,5.62449795,218.37,218.25,5.62449795]
[1734492818934,5.62449795,218.34,218.25,5.62449795]
[1734492819235,5.62449795,218.34,218.25,7.86449795]
[1734492819739,2.2905,218.3,218.25,7.86449795]
[1734492819938,24.32305817,218.36,218.25,2.24]
[1734492820140,10.47813952,218.35,218.25,2.24]
[1734492820338,2.24,218.36,218.25,2.24]
[1734492820737,9.47294972,218.35,218.23,5.56980601]
[1734492820939,0.67654645,218.34,218.23,2.24]
[1734492821742,2.2909,218.25,218.23,2.24]
[1734492821941,2.24,218.31,218.21,2.24]
[1734492822241,2.24,218.31,218.18,2.24]
[1734492822636,2.24,218.31,218.16,2.2918]
[1734492822836,8.79640327,218.29,218.15,2.24]
[1734492823031,2.2915,218.2,218.15,2.24]
[1734492823432,2.2915,218.2,218.14,7.7862476]
[1734492824641,2.2915,218.2,218.14,5.4942476]
[1734492825040,2.2915,218.2,218.14,7.7342476]
[1734492825539,2.2921,218.14,218.04,52.38]
[1734492825737,2.2921,218.14,218.06,8.79640327]
[1734492826235,2.2921,218.14,218.1,5.4167278]
[1734492826542,2.2922,218.13,218.08,2.24]
[1734492826943,2.2922,218.13,218.08,7.72661041]
[1734492828343,2.2916,218.19,218.1,2.2924]
[1734492828648,2.24,218.22,218.09,8.79640327]
[1734492829338,2.2918,218.17,218.1,2.2925]
[1734492829651,9.1118,218.17,218.1,2.2925]
[1734492831549,2.2919,218.16,218.1,2.2925]
[1734492832343,2.2919,218.16,218.09,8.79640327]
[1734492832749,9.1118,218.17,218.09,8.79640327]
[1734492833449,9.1118,218.17,218.1,2.2924]
[1734492834251,2.2919,218.16,218.09,8.79640327]
[1734492835653,2.2919,218.16,218.09,11.08900327]
[1734492835946,6.82,218.17,218.09,8.79640327]
[1734492836148,6.82,218.17,218.15,8.79640327]
[1734492836352,6.82,218.17,218.16,2.24]
[1734492836848,6.82,218.17,218.16,4.5319]
[1734492839553,4.5859,218.29,218.16,2.24]
[1734492839749,4.5859,218.29,218.2,8.79640327]
[1734492839951,4.5859,218.29,218.21,2.24]
[1734492840645,10.9059,218.29,218.21,2.24]
[1734492841652,2.2914,218.21,218.2,2.24]
[1734492842852,10.9059,218.29,218.2,2.24]
[1734492843054,2.2909,218.26,218.2,2.24]
[1734492843252,10.9059,218.29,218.2,2.24]
[1734492844457,2.291,218.24,218.2,2.24]
[1734492846359,10.9059,218.29,218.2,2.24]
[1734492846758,2.2911,218.24,218.2,2.24]
[1734492847356,2.2911,218.23,218.2,2.24]
[1734492850760,2.2914,218.21,218.15,2.292]
[1734492850960,5.63300592,218.26,218.17,5.63300592]
[1734492851160,5.63300592,218.26,218.18,2.24]
[1734492851460,2.2915,218.2,218.18,2.24]
[1734492852057,5.63300592,218.26,218.18,2.24]
[1734492852253,2.2916,218.19,218.18,2.24]
[1734492853564,2.2916,218.19,218.17,5.63300592]
[1734492853765,2.2916,218.19,218.17,7.87300592]
[1734492854062,5.63300592,218.26,218.17,7.87300592]
[1734492854262,2.2915,218.2,218.17,7.87300592]
[1734492855768,7.5515,218.2,218.17,7.87300592]
[1734492855969,2.2916,218.19,218.17,7.87300592]
[1734492856265,5.26,218.2,218.09,3.001]
[1734492856566,2.2921,218.15,218.12,5.63300592]
[1734492856763,10.89300592,218.2,218.12,5.63300592]
[1734492856959,1.467,218.19,218.12,5.63300592]
[1734492857358,2.2921,218.15,218.12,5.63300592]
[1734492858268,1.467,218.19,218.12,5.63300592]
[1734492858466,2.2917,218.19,218.16,5.63300592]
[1734492858767,5.26,218.2,218.18,5.63300592]
[1734492863872,7.5515,218.2,218.18,5.63300592]
[1734492865566,5.26,218.2,218.18,5.63300592]
[1734492866164,5.26,218.2,218.19,2.2916]
[1734492867669,5.63300592,218.32,218.18,5.63300592]
[1734492867877,5.63300592,218.32,218.24,5.63300592]
[1734492868071,5.63300592,218.32,218.25,2.24]
[1734492868271,30.08717655,218.32,218.25,2.24]
[1734492868472,24.45417063,218.31,218.25,2.24]
[1734492868672,24.45417063,218.3,218.25,2.24]
[1734492868975,5.63300592,218.32,218.25,2.24]
[1734492868976,10.53466756,218.29,218.25,2.24]
[1734492869178,1.05,218.31,218.25,2.24]
[1734492869476,2.2908,218.27,218.25,2.24]
[1734492870874,1.05,218.31,218.26,5.63300592]
[1734492871174,1.05,218.31,218.26,7.92380592]
[1734492871366,3.3403,218.31,218.28,5.63300592]
[1734492871569,11.5833773,218.31,218.28,5.63300592]
[1734492871776,1.05,218.31,218.3,5.63300592]
[1734492872175,1.05,218.31,218.3,7.87300592]
[1734492872376,1.05,218.31,218.3,10.16340592]
[1734492873074,95.39670977,218.38,218.32,2.2901]
[1734492873267,95.39670977,218.38,218.35,5.63300592]
[1734492873471,97.68630977,218.38,218.35,5.63300592]
[1734492877570,95.39670977,218.38,218.35,5.63300592]
[1734492877776,2.2895,218.39,218.37,5.63300592]
[1734492878075,2.2893,218.41,218.37,7.87300592]
[1734492878272,5.63300592,218.44,218.37,2.24]
[1734492878471,5.63300592,218.44,218.37,7.87300592]
[1734492878771,5.63300592,218.42,218.34,7.87300592]
[1734492879172,2.2896,218.38,218.34,7.87300592]
[1734492879877,5.63300592,218.42,218.34,2.24]
[1734492880073,2.2898,218.36,218.33,5.63300592]
[1734492880275,2.2898,218.36,218.33,7.87300592]
[1734492880677,2.2898,218.36,218.33,5.63300592]
[1734492882383,2.2899,218.35,218.33,5.63300592]
[1734492883380,5.63300592,218.4,218.33,5.63300592]
[1734492883578,2.2898,218.36,218.33,5.63300592]
[1734492884079,5.63300592,218.38,218.24,60.90975177]
[1734492884283,1.5698,218.35,218.25,2.24]
[1734492884475,1.5698,218.35,218.27,5.63300592]
[1734492884476,3.0968,218.35,218.27,5.63300592]
[1734492884778,2.2905,218.3,218.27,5.63300592]
[1734492885377,2.2905,218.3,218.27,11.17362865]
[1734492887383,2.2905,218.3,218.27,5.63300592]
[1734492889389,2.2905,218.3,218.29,5.63300592]
[1734492891286,2.2905,218.3,218.26,7.63554495]
[1734492891492,2.2905,218.3,218.28,5.63300592]
[1734492892988,2.2905,218.3,218.26,9.92624495]
[1734492893187,2.2905,218.3,218.28,5.63300592]
[1734492893383,2.2904,218.29,218.26,2.24]
[1734492893588,8.72980592,218.35,218.24,5.63300592]
[1734492893589,5.63300592,218.33,218.24,5.63300592]
[1734492894697,2.2907,218.27,218.24,5.63300592]
[1734492894894,5.63300592,218.33,218.24,5.63300592]
[1734492895398,5.63300592,218.33,218.07,56.9856]
[1734492895399,5.63300592,218.31,218.17,1.5047]
[1734492895594,2.291,218.24,218.22,5.63300592]
[1734492896292,10.48452094,218.31,218.22,5.63300592]
[1734492896496,10.48452094,218.31,218.2,2.2913]
[1734492896497,5.63300592,218.34,218.26,5.63300592]
[1734492896697,22.81032629,218.34,218.26,5.63300592]
[1734492896991,2.2905,218.29,218.26,5.63300592]
[1734492897788,2.2903,218.3,218.28,5.63300592]
[1734492898593,13.58539357,218.35,218.28,5.63300592]
[1734492898594,2.2902,218.31,218.28,5.63300592]
[1734492899195,2.2902,218.31,218.27,2.2906]
[1734492899391,2.2902,218.31,218.27,5.63300592]
[1734492899593,3.0968,218.35,218.23,2.24]
[1734492899794,5.63300592,218.34,218.26,5.63300592]
[1734492899997,5.63300592,218.32,218.23,2.291]
[1734492900198,5.63300592,218.32,218.24,2.24]
[1734492900199,2.2909,218.25,218.24,2.24]
[1734492900599,5.63300592,218.3,218.07,56.9856]
[1734492900794,5.63300592,218.28,218.21,5.63300592]
[1734492900999,3.0434,218.27,218.2,2.24]
[1734492901301,3.0434,218.27,218.19,7.87300592]
[1734492901599,2.2914,218.21,218.19,7.87300592]
[1734492901902,2.2914,218.2,218.19,7.87300592]
[1734492902093,2.2914,218.2,218.19,5.63300592]
[1734492902298,5.63300592,218.26,218.17,5.63300592]
[1734492902501,2.2916,218.18,218.17,5.63300592]
[1734492903304,5.63300592,218.24,218.16,2.24]
[1734492903996,2.2917,218.18,218.16,2.24]
[1734492904601,10.4973362,218.26,218.16,2.24]
[1734492904901,3.0434,218.27,218.16,2.24]
[1734492904902,3.0434,218.27,218.16,4.5318]
[1734492905500,2.2914,218.21,218.16,4.5318]
[1734492908694,3.0434,218.27,218.16,2.24]
[1734492908895,3.0434,218.27,218.17,8.80545881]
[1734492910505,2.2913,218.22,218.17,8.80545881]
[1734492911602,3.0434,218.27,218.19,2.2914]
[1734492912608,3.0434,218.27,218.16,2.24]
[1734492913102,2.2916,218.18,218.16,2.24]
[1734492913297,13.5566072,218.27,218.16,2.24]
[1734492913606,3.0434,218.27,218.16,2.24]
[1734492913802,3.0434,218.27,218.17,8.80545881]
[1734492914605,2.2907,218.27,218.22,2.2911]
[1734492914905,2.2907,218.27,218.22,4.5311]
[1734492915901,2.2907,218.27,218.22,2.2911]
[1734492916106,2.2907,218.27,218.23,2.24]
[1734492916506,2.2905,218.29,218.24,2.291]
[1734492917408,2.2903,218.31,218.25,2.2908]
[1734492917604,3.0753,218.34,218.25,2.2908]
[1734492918009,3.0753,218.34,218.23,11.04545881]
[1734492918010,2.2905,218.29,218.24,2.2909]
[1734492918306,3.0753,218.34,218.23,11.04545881]
[1734492918708,2.2907,218.26,218.23,2.24]
[1734492919313,3.0753,218.34,218.23,2.24]
[1734492919714,20.29994845,218.34,218.23,2.24]
[1734492920013,2.2907,218.27,218.23,2.24]
[1734492920609,2.2904,218.29,218.25,2.2908]
[1734492921012,2.2904,218.29,218.23,2.24]
[1734492921013,20.30515767,218.34,218.23,11.04545881]
[1734492921214,10.51795551,218.33,218.23,11.04545881]
[1734492921412,2.2903,218.31,218.27,2.2906]
[1734492921616,2.2903,218.31,218.23,11.04545881]
[1734492921816,3.0753,218.34,218.23,11.04545881]
[1734492922513,3.0753,218.34,218.23,2.24]
[1734492922716,2.2907,218.27,218.23,2.24]
[1734492923219,10.52370102,218.33,218.23,11.04545881]
[1734492923515,2.2902,218.31,218.26,2.2907]
[1734492930221,2.2902,218.31,218.27,5.6291383]
[1734492931222,277.85587748,218.47,218.29,5.6291383]
[1734492931423,5.6291383,218.43,218.35,5.6291383]
[1734492931626,0.67853067,218.42,218.35,5.6291383]
[1734492931825,24.87648051,218.42,218.35,5.6291383]
[1734492932019,2.2893,218.4,218.35,5.6291383]
[1734492932219,19.56907492,218.4,218.35,5.6291383]
[1734492932420,10.54868594,218.39,218.35,5.6291383]
[1734492932622,2.2893,218.4,218.36,2.2897]
[1734492933521,9.02119974,218.4,218.36,2.2897]
[1734492933820,9.02119974,218.4,218.34,2.24]
[1734492933821,13.65031854,218.42,218.37,5.6291383]
[1734492934014,13.65031854,218.42,218.38,2.2895]
[1734492934015,10.5500234,218.41,218.38,2.2895]
[1734492934322,2.2891,218.42,218.38,2.2895]
[1734492936428,1.5952,218.46,218.39,2.24]
[1734492936627,10.54583434,218.46,218.4,2.24]
[1734492937319,1.5262,218.51,218.4,4.5292]
[1734492937624,0.67920201,218.5,218.4,4.5292]
[1734492938024,17.45253042,218.5,218.4,2.24]
[1734492938230,1.5262,218.51,218.42,2.2891]
[1734492938633,18.78099082,218.51,218.43,2.2889]
[1734492938926,0.22692,218.53,218.43,8.78708783]
[1734492939127,2.51492,218.53,218.43,8.78708783]
[1734492939832,2.51492,218.53,218.46,2.2887]
[1734492940023,2.51492,218.53,218.47,2.24]
[1734492940024,0.22692,218.53,218.47,2.24]
[1734492940223,0.22692,218.53,218.48,2.24]
[1734492940429,0.22692,218.53,218.46,8.78708783]
[1734492940430,0.22692,218.53,218.49,2.24]
[1734492941031,0.22692,218.53,218.49,11.02708783]
[1734492941925,0.22692,218.53,218.52,11.07508783]
[1734492944534,0.22692,218.53,218.49,8.78708783]
[1734492944935,0.22692,218.53,218.5,2.24]
[1734492946232,0.22692,218.53,218.52,8.78708783]
[1734492947132,0.22692,218.53,218.5,2.24]
[1734492951828,0.22692,218.53,218.5,4.5283]
[1734492952037,0.22692,218.53,218.5,2.24]
[1734492954536,0.22692,218.53,218.49,11.07548783]
[1734492954843,0.22692,218.53,218.51,2.24]
[1734492955936,0.22692,218.53,218.52,5.61602417]
[1734492956442,0.22692,218.53,218.52,7.90412417]
[1734492957443,2.2874,218.58,218.52,7.90412417]
[1734492957645,2.2874,218.58,218.55,5.61602417]
[1734492957842,95.31791395,218.64,218.55,5.61602417]
[1734492958044,100.93393812,218.64,218.55,5.61602417]
[1734492958439,100.93393812,218.64,218.56,2.24]
[1734492958840,100.93393812,218.64,218.57,5.61602417]
[1734492959037,95.31791395,218.64,218.59,5.61602417]
[1734492959239,52.38,218.76,218.61,5.61602417]
[1734492959437,2.2866,218.66,218.62,2.24]
[1734492959644,2.2866,218.66,218.63,5.61602417]
[1734492959839,5.61602417,218.7,218.63,5.61602417]